[Event "Titled Tuesday Blitz May 4 2021"]
[White "Alavkin, Arseny"]
[Black "Cunjalo, Faris"]
[WhiteFideId "4120612"]
[BlackFideId "14410710"]
[WhiteElo "2416"]
[BlackElo "2234"]
[Result "1/2-1/2"]
[Round "03"]
[TimeControl "180+1"]
[Date "2021.05.04"]
[WhiteClock "0:00:13"]
[BlackClock "0:00:19"]

1. c4 {[%clk 0:03:00]}  b6 {[%clk 0:02:58]} 2. Nc3 {[%clk 0:03:00]}  Bb7 {[%clk 0:02:58]} 3. Nf3 {[%clk 0:03:00]}  e6 {[%clk 0:02:58]} 4. g3 {[%clk 0:02:58]}  Nf6 {[%clk 0:02:52]} 5. Bg2 {[%clk 0:02:57]}  c5 {[%clk 0:02:53]} 6. O-O {[%clk 0:02:57]}  Be7 {[%clk 0:02:53]} 7. Re1 {[%clk 0:02:57]}  O-O {[%clk 0:02:53]} 8. e4 {[%clk 0:02:57]}  d6 {[%clk 0:02:54]} 9. d4 {[%clk 0:02:57]}  cxd4 {[%clk 0:02:55]} 10. Nxd4 {[%clk 0:02:58]}  Qc7 {[%clk 0:02:53]} 11. Ndb5 {[%clk 0:02:58]}  Qd7 {[%clk 0:02:51]} 12. Bf4 {[%clk 0:02:58]}  Rd8 {[%clk 0:02:51]} 13. h3 {[%clk 0:02:28]}  Nc6 {[%clk 0:02:46]} 14. Be3 {[%clk 0:02:23]}  a6 {[%clk 0:02:40]} 15. Nd4 {[%clk 0:02:22]}  Ne5 {[%clk 0:02:37]} 16. b3 {[%clk 0:02:21]}  Qc7 {[%clk 0:02:37]} 17. f4 {[%clk 0:02:19]}  Nc6 {[%clk 0:02:21]} 18. Rc1 {[%clk 0:02:18]}  Nxd4 {[%clk 0:02:20]} 19. Qxd4 {[%clk 0:02:19]}  Nd7 {[%clk 0:02:20]} 20. Qd2 {[%clk 0:02:18]}  Nc5 {[%clk 0:02:19]} 21. g4 {[%clk 0:02:13]}  Bf6 {[%clk 0:02:19]} 22. Bf2 {[%clk 0:02:13]}  g6 {[%clk 0:02:09]} 23. g5 {[%clk 0:02:12]}  Bg7 {[%clk 0:02:09]} 24. h4 {[%clk 0:02:13]}  Rac8 {[%clk 0:01:47]} 25. h5 {[%clk 0:02:11]}  Qe7 {[%clk 0:01:28]} 26. h6 {[%clk 0:02:11]}  Bh8 {[%clk 0:01:24]} 27. f5 {[%clk 0:01:57]}  Be5 {[%clk 0:01:24]} 28. Bd4 {[%clk 0:01:45]}  Nd7 {[%clk 0:00:46]} 29. Qe3 {[%clk 0:01:41]}  Bxd4 {[%clk 0:00:27]} 30. Qxd4 {[%clk 0:01:42]}  Ne5 {[%clk 0:00:28]} 31. f6 {[%clk 0:01:36]}  Qc7 {[%clk 0:00:27]} 32. Red1 {[%clk 0:01:36]}  Bc6 {[%clk 0:00:17]} 33. Kf2 {[%clk 0:01:31]}  Kf8 {[%clk 0:00:14]} 34. Kg1 {[%clk 0:01:25]}  Qb7 {[%clk 0:00:14]} 35. Ne2 {[%clk 0:01:16]}  Ke8 {[%clk 0:00:13]} 36. Nf4 {[%clk 0:01:15]}  Rd7 {[%clk 0:00:12]} 37. b4 {[%clk 0:01:12]}  Qc7 {[%clk 0:00:11]} 38. Rc3 {[%clk 0:01:09]}  Bb7 {[%clk 0:00:10]} 39. Rdc1 {[%clk 0:01:08]}  Nc6 {[%clk 0:00:09]} 40. Qe3 {[%clk 0:00:56]}  Nxb4 {[%clk 0:00:10]} 41. Rb3 {[%clk 0:00:53]}  a5 {[%clk 0:00:10]} 42. a3 {[%clk 0:00:52]}  Na6 {[%clk 0:00:10]} 43. Rxb6 {[%clk 0:00:50]}  Nc5 {[%clk 0:00:11]} 44. Rcb1 {[%clk 0:00:46]}  Kf8 {[%clk 0:00:07]} 45. Nd3 {[%clk 0:00:41]}  Ba8 {[%clk 0:00:03]} 46. Nxc5 {[%clk 0:00:33]}  Qxc5 {[%clk 0:00:02]} 47. Qxc5 {[%clk 0:00:33]}  dxc5 {[%clk 0:00:03]} 48. e5 {[%clk 0:00:31]}  Bxg2 {[%clk 0:00:04]} 49. Kxg2 {[%clk 0:00:31]}  Ke8 {[%clk 0:00:05]} 50. Kf3 {[%clk 0:00:31]}  Rd3+ {[%clk 0:00:03]} 51. Ke4 {[%clk 0:00:28]}  Rcd8 {[%clk 0:00:04]} 52. Rd6 {[%clk 0:00:27]}  R8xd6 {[%clk 0:00:04]} 53. exd6 {[%clk 0:00:28]}  Rxd6 {[%clk 0:00:04]} 54. Rb8+ {[%clk 0:00:27]}  Rd8 {[%clk 0:00:05]} 55. Rb7 {[%clk 0:00:27]}  Rd4+ {[%clk 0:00:06]} 56. Ke5 {[%clk 0:00:26]}  Rxc4 {[%clk 0:00:02]} 57. Rb8+ {[%clk 0:00:26]}  Kd7 {[%clk 0:00:03]} 58. Rh8 {[%clk 0:00:26]}  Rg4 {[%clk 0:00:02]} 59. Rxh7 {[%clk 0:00:26]}  Rxg5+ {[%clk 0:00:02]} 60. Ke4 {[%clk 0:00:26]}  Rh5 {[%clk 0:00:02]} 61. Rxf7+ {[%clk 0:00:26]}  Kd6 {[%clk 0:00:03]} 62. h7 {[%clk 0:00:24]}  Rh4+ {[%clk 0:00:03]} 63. Kd3 {[%clk 0:00:24]}  Ke5 {[%clk 0:00:03]} 64. Kc3 {[%clk 0:00:20]}  g5 {[%clk 0:00:03]} 65. Kd3 {[%clk 0:00:19]}  a4 {[%clk 0:00:03]} 66. Ke3 {[%clk 0:00:19]}  Rh3+ {[%clk 0:00:03]} 67. Kf2 {[%clk 0:00:19]}  g4 {[%clk 0:00:04]} 68. Kg2 {[%clk 0:00:19]}  c4 {[%clk 0:00:04]} 69. Rc7 {[%clk 0:00:15]}  Kxf6 {[%clk 0:00:04]} 70. Rxc4 {[%clk 0:00:15]}  Rxh7 {[%clk 0:00:05]} 71. Rxg4 {[%clk 0:00:14]}  Ra7 {[%clk 0:00:04]} 72. Kf3 {[%clk 0:00:14]}  Kf5 {[%clk 0:00:05]} 73. Rb4 {[%clk 0:00:14]}  e5 {[%clk 0:00:05]} 74. Ke3 {[%clk 0:00:14]}  Rh7 {[%clk 0:00:03]} 75. Rxa4 {[%clk 0:00:14]}  Rh3+ {[%clk 0:00:04]} 76. Ke2 {[%clk 0:00:14]}  e4 {[%clk 0:00:05]} 77. Ra8 {[%clk 0:00:14]}  Rh2+ {[%clk 0:00:04]} 78. Ke3 {[%clk 0:00:13]}  Rh3+ {[%clk 0:00:05]} 79. Ke2 {[%clk 0:00:13]}  Kf4 {[%clk 0:00:06]} 80. Rf8+ {[%clk 0:00:12]}  Ke5 {[%clk 0:00:06]} 81. Re8+ {[%clk 0:00:13]}  Kd4 {[%clk 0:00:07]} 82. Rd8+ {[%clk 0:00:13]}  Ke5 {[%clk 0:00:08]} 83. Re8+ {[%clk 0:00:13]}  Kd4 {[%clk 0:00:08]} 84. Rd8+ {[%clk 0:00:13]}  Ke5 {[%clk 0:00:09]} 85. a4 {[%clk 0:00:11]}  Rh2+ {[%clk 0:00:09]} 86. Ke3 {[%clk 0:00:11]}  Rh3+ {[%clk 0:00:10]} 87. Ke2 {[%clk 0:00:12]}  Ra3 {[%clk 0:00:11]} 88. Re8+ {[%clk 0:00:11]}  Kf4 {[%clk 0:00:11]} 89. Rf8+ {[%clk 0:00:11]}  Ke5 {[%clk 0:00:12]} 90. Re8+ {[%clk 0:00:11]}  Kd4 {[%clk 0:00:13]} 91. Rd8+ {[%clk 0:00:11]}  Kc5 {[%clk 0:00:13]} 92. Re8 {[%clk 0:00:11]}  Rxa4 {[%clk 0:00:14]} 93. Ke3 {[%clk 0:00:11]}  Kd5 {[%clk 0:00:15]} 94. Rd8+ {[%clk 0:00:12]}  Ke5 {[%clk 0:00:15]} 95. Re8+ {[%clk 0:00:12]}  Kf5 {[%clk 0:00:16]} 96. Rf8+ {[%clk 0:00:12]}  Kg5 {[%clk 0:00:16]} 97. Re8 {[%clk 0:00:13]}  Ra1 {[%clk 0:00:17]} 98. Rxe4 {[%clk 0:00:12]}  Re1+ {[%clk 0:00:18]} 99. Kd4 {[%clk 0:00:12]}  Rxe4+ {[%clk 0:00:19]} 100. Kxe4 {[%clk 0:00:13]} 1/2-1/2


[Site "https://www.chess.com"]

[Event "Titled Tuesday Blitz May 4 2021"]
[White "AldokhinIvan"]
[Black "Jumabayev, Rinat"]
[BlackFideId "13702661"]
[WhiteElo "2541"]
[BlackElo "2535"]
[Result "1-0"]
[Round "03"]
[TimeControl "180+1"]
[Date "2021.05.04"]
[WhiteClock "0:00:22"]
[BlackClock "0:00:13"]

1. e4 {[%clk 0:03:00]}  c5 {[%clk 0:03:00]} 2. Nf3 {[%clk 0:02:59]}  d6 {[%clk 0:03:00]} 3. d4 {[%clk 0:03:00]}  cxd4 {[%clk 0:03:01]} 4. Nxd4 {[%clk 0:03:01]}  Nf6 {[%clk 0:03:02]} 5. Nc3 {[%clk 0:03:00]}  a6 {[%clk 0:03:02]} 6. Bc4 {[%clk 0:03:00]}  e6 {[%clk 0:03:02]} 7. Bb3 {[%clk 0:03:00]}  Be7 {[%clk 0:03:02]} 8. Qe2 {[%clk 0:03:01]}  Qc7 {[%clk 0:02:58]} 9. Be3 {[%clk 0:03:00]}  Nc6 {[%clk 0:02:58]} 10. O-O-O {[%clk 0:02:59]}  Na5 {[%clk 0:02:58]} 11. g4 {[%clk 0:02:56]}  b5 {[%clk 0:02:40]} 12. g5 {[%clk 0:02:54]}  Nxb3+ {[%clk 0:02:40]} 13. axb3 {[%clk 0:02:50]}  Nd7 {[%clk 0:02:41]} 14. Nf5 {[%clk 0:02:37]}  exf5 {[%clk 0:02:03]} 15. Nd5 {[%clk 0:02:24]}  Qd8 {[%clk 0:02:03]} 16. exf5 {[%clk 0:02:18]}  Bb7 {[%clk 0:01:48]} 17. f6 {[%clk 0:02:18]}  gxf6 {[%clk 0:01:41]} 18. gxf6 {[%clk 0:02:11]}  Nxf6 {[%clk 0:01:38]} 19. Bb6 {[%clk 0:01:12]}  Bxd5 {[%clk 0:01:36]} 20. Bxd8 {[%clk 0:01:10]}  Rxd8 {[%clk 0:01:37]} 21. Rxd5 {[%clk 0:01:00]}  Nxd5 {[%clk 0:01:32]} 22. Re1 {[%clk 0:01:00]}  Rd7 {[%clk 0:01:08]} 23. Qe4 {[%clk 0:00:52]}  Nc7 {[%clk 0:01:07]} 24. Qc6 {[%clk 0:00:40]}  Rg8 {[%clk 0:00:35]} 25. f4 {[%clk 0:00:40]}  Rg4 {[%clk 0:00:18]} 26. Qf3 {[%clk 0:00:30]}  Rg6 {[%clk 0:00:17]} 27. f5 {[%clk 0:00:22]}  Rf6 {[%clk 0:00:17]} 28. Qg2 {[%clk 0:00:22]}  Kd8 {[%clk 0:00:13]} 29. Qb7 {[%clk 0:00:22]} 1-0


[Site "https://www.chess.com"]

[Event "Titled Tuesday Blitz May 4 2021"]
[White "Alexeev, Alexey"]
[Black "Nazaretyan, Tigran"]
[WhiteFideId "14106663"]
[BlackFideId "24162345"]
[WhiteElo "2185"]
[BlackElo "2276"]
[Result "0-1"]
[Round "03"]
[TimeControl "180+1"]
[Date "2021.05.04"]
[WhiteClock "0:01:38"]
[BlackClock "0:01:48"]

1. e4 {[%clk 0:02:59]}  c5 {[%clk 0:02:59]} 2. a3 {[%clk 0:02:58]}  g6 {[%clk 0:02:58]} 3. b4 {[%clk 0:02:58]}  Bg7 {[%clk 0:02:58]} 4. Nc3 {[%clk 0:02:57]}  d6 {[%clk 0:02:56]} 5. g3 {[%clk 0:02:56]}  Nf6 {[%clk 0:02:56]} 6. Bg2 {[%clk 0:02:56]}  Nc6 {[%clk 0:02:52]} 7. Rb1 {[%clk 0:02:54]}  Nd4 {[%clk 0:02:44]} 8. Nce2 {[%clk 0:02:45]}  O-O {[%clk 0:02:32]} 9. Nxd4 {[%clk 0:02:43]}  cxd4 {[%clk 0:02:32]} 10. Ne2 {[%clk 0:02:42]}  e5 {[%clk 0:02:32]} 11. O-O {[%clk 0:02:41]}  d5 {[%clk 0:02:32]} 12. d3 {[%clk 0:02:34]}  dxe4 {[%clk 0:02:31]} 13. dxe4 {[%clk 0:02:34]}  Be6 {[%clk 0:02:23]} 14. f4 {[%clk 0:02:33]}  Bc4 {[%clk 0:02:20]} 15. h3 {[%clk 0:02:19]}  exf4 {[%clk 0:02:16]} 16. gxf4 {[%clk 0:02:10]}  Re8 {[%clk 0:02:05]} 17. e5 {[%clk 0:02:08]}  Nd5 {[%clk 0:02:05]} 18. Rf2 {[%clk 0:02:02]}  Bxe2 {[%clk 0:02:03]} 19. Qxe2 {[%clk 0:01:52]}  Nc3 {[%clk 0:02:03]} 20. Qc4 {[%clk 0:01:49]}  Nxb1 {[%clk 0:01:59]} 21. Bb2 {[%clk 0:01:49]}  Nc3 {[%clk 0:01:58]} 22. Bxc3 {[%clk 0:01:48]}  dxc3 {[%clk 0:01:56]} 23. Qxc3 {[%clk 0:01:49]}  Rc8 {[%clk 0:01:55]} 24. Qe1 {[%clk 0:01:46]}  Qd4 {[%clk 0:01:51]} 25. Kh2 {[%clk 0:01:43]}  Bh6 {[%clk 0:01:50]} 26. Be4 {[%clk 0:01:38]}  Rc4 {[%clk 0:01:48]} 0-1


[Site "https://www.chess.com"]

[Event "Titled Tuesday Blitz May 4 2021"]
[White "Almeida Junior, Alvaro Alves de"]
[Black "Mohammad Fahad, Rahman"]
[WhiteFideId "2149974"]
[BlackFideId "10207791"]
[WhiteElo "2097"]
[BlackElo "2308"]
[Result "0-1"]
[Round "03"]
[TimeControl "180+1"]
[Date "2021.05.04"]
[WhiteClock "0:00:21"]
[BlackClock "0:00:52"]

1. e4 {[%clk 0:03:00]}  c5 {[%clk 0:02:59]} 2. Nf3 {[%clk 0:03:00]}  d6 {[%clk 0:03:00]} 3. d4 {[%clk 0:03:01]}  cxd4 {[%clk 0:03:01]} 4. Nxd4 {[%clk 0:03:02]}  Nf6 {[%clk 0:03:01]} 5. Nc3 {[%clk 0:03:02]}  Nc6 {[%clk 0:03:02]} 6. Be2 {[%clk 0:02:56]}  e5 {[%clk 0:03:00]} 7. Nb3 {[%clk 0:02:54]}  Be6 {[%clk 0:03:00]} 8. O-O {[%clk 0:02:54]}  Be7 {[%clk 0:03:00]} 9. f4 {[%clk 0:02:53]}  O-O {[%clk 0:02:45]} 10. Kh1 {[%clk 0:02:45]}  a5 {[%clk 0:02:45]} 11. a4 {[%clk 0:02:44]}  Nb4 {[%clk 0:02:45]} 12. f5 {[%clk 0:02:24]}  Bd7 {[%clk 0:02:44]} 13. Bg5 {[%clk 0:02:04]}  Bc6 {[%clk 0:02:43]} 14. Bxf6 {[%clk 0:02:01]}  Bxf6 {[%clk 0:02:44]} 15. Bb5 {[%clk 0:01:58]}  Rc8 {[%clk 0:02:27]} 16. Nxa5 {[%clk 0:01:53]}  Qxa5 {[%clk 0:02:25]} 17. Qxd6 {[%clk 0:01:47]}  Rfd8 {[%clk 0:02:08]} 18. Qc5 {[%clk 0:01:46]}  Nxc2 {[%clk 0:02:00]} 19. Rad1 {[%clk 0:01:40]}  Bxb5 {[%clk 0:01:55]} 20. Qxb5 {[%clk 0:01:36]}  Qxb5 {[%clk 0:01:50]} 21. Nxb5 {[%clk 0:01:37]}  Nd4 {[%clk 0:01:43]} 22. Nc3 {[%clk 0:01:32]}  Rc4 {[%clk 0:01:32]} 23. a5 {[%clk 0:01:19]}  Rb4 {[%clk 0:01:28]} 24. Rb1 {[%clk 0:01:11]}  Nc6 {[%clk 0:01:22]} 25. a6 {[%clk 0:01:01]}  bxa6 {[%clk 0:01:19]} 26. Ra1 {[%clk 0:00:59]}  a5 {[%clk 0:01:10]} 27. h3 {[%clk 0:00:54]}  Rxb2 {[%clk 0:01:08]} 28. Nd5 {[%clk 0:00:52]}  Bg5 {[%clk 0:01:01]} 29. Rf3 {[%clk 0:00:31]}  h6 {[%clk 0:00:54]} 30. Rc3 {[%clk 0:00:30]}  Nb4 {[%clk 0:00:53]} 31. Rxa5 {[%clk 0:00:21]}  Nxd5 {[%clk 0:00:53]} 32. Rxd5 {[%clk 0:00:21]}  Rxd5 {[%clk 0:00:52]} 33. exd5 {[%clk 0:00:21]}  Rd2 {[%clk 0:00:52]} 0-1


[Site "https://www.chess.com"]

[Event "Titled Tuesday Blitz May 4 2021"]
[White "Amarasinghe, A A C B"]
[Black "Gombocz, Ferenc Jr."]
[WhiteFideId "9901809"]
[BlackFideId "775029"]
[WhiteElo "1778"]
[BlackElo "1913"]
[Result "0-1"]
[Round "03"]
[TimeControl "180+1"]
[Date "2021.05.04"]
[WhiteClock "0:01:27"]
[BlackClock "0:01:10"]

1. c4 {[%clk 0:03:00]}  c5 {[%clk 0:02:59]} 2. g3 {[%clk 0:03:00]}  g6 {[%clk 0:02:58]} 3. Bg2 {[%clk 0:03:00]}  Bg7 {[%clk 0:02:59]} 4. Nf3 {[%clk 0:03:01]}  Nc6 {[%clk 0:02:59]} 5. O-O {[%clk 0:03:01]}  d6 {[%clk 0:02:57]} 6. Nc3 {[%clk 0:03:00]}  Bf5 {[%clk 0:02:56]} 7. d3 {[%clk 0:02:59]}  Qd7 {[%clk 0:02:55]} 8. Qc2 {[%clk 0:02:58]}  Bh3 {[%clk 0:02:55]} 9. Bd2 {[%clk 0:02:54]}  h5 {[%clk 0:02:52]} 10. Nd5 {[%clk 0:02:48]}  h4 {[%clk 0:02:31]} 11. Bxh3 {[%clk 0:02:41]}  Qxh3 {[%clk 0:02:27]} 12. Nc7+ {[%clk 0:02:41]}  Kd8 {[%clk 0:02:10]} 13. Ng5 {[%clk 0:02:36]}  Qg4 {[%clk 0:01:48]} 14. Nxa8 {[%clk 0:02:26]}  hxg3 {[%clk 0:01:48]} 15. Nxf7+ {[%clk 0:02:22]}  Ke8 {[%clk 0:01:43]} 16. Nxh8 {[%clk 0:02:21]}  Nd4 {[%clk 0:01:20]} 17. Qa4+ {[%clk 0:02:17]}  b5 {[%clk 0:01:19]} 18. Qxa7 {[%clk 0:01:40]}  Nxe2+ {[%clk 0:01:14]} 19. Kg2 {[%clk 0:01:36]}  gxh2+ {[%clk 0:01:13]} 20. Kxh2 {[%clk 0:01:28]}  Be5+ {[%clk 0:01:12]} 21. f4 {[%clk 0:01:27]}  Qg3+ {[%clk 0:01:10]} 22. Kh1 {[%clk 0:01:27]}  Qh3# {[%clk 0:01:10]} 0-1


[Site "https://www.chess.com"]

[Event "Titled Tuesday Blitz May 4 2021"]
[White "Amorim, Daniel Madson De Medeiro"]
[Black "Kubicka, Anna"]
[WhiteFideId "2124912"]
[BlackFideId "1152254"]
[WhiteElo "2179"]
[BlackElo "2010"]
[Result "0-1"]
[Round "03"]
[TimeControl "180+1"]
[Date "2021.05.04"]
[WhiteClock "0:01:28"]
[BlackClock "0:02:29"]

1. d4 {[%clk 0:03:00]}  Nf6 {[%clk 0:02:58]} 2. c4 {[%clk 0:03:00]}  g6 {[%clk 0:02:57]} 3. Nc3 {[%clk 0:03:01]}  Bg7 {[%clk 0:02:57]} 4. e4 {[%clk 0:03:01]}  O-O {[%clk 0:02:58]} 5. Nf3 {[%clk 0:03:01]}  d6 {[%clk 0:02:57]} 6. h3 {[%clk 0:02:59]}  e5 {[%clk 0:02:56]} 7. d5 {[%clk 0:02:57]}  a5 {[%clk 0:02:57]} 8. g4 {[%clk 0:02:56]}  Na6 {[%clk 0:02:53]} 9. Be3 {[%clk 0:02:56]}  Nc5 {[%clk 0:02:51]} 10. Nd2 {[%clk 0:02:56]}  c6 {[%clk 0:02:48]} 11. Be2 {[%clk 0:02:54]}  cxd5 {[%clk 0:02:48]} 12. cxd5 {[%clk 0:02:54]}  b6 {[%clk 0:02:45]} 13. g5 {[%clk 0:02:54]}  Ne8 {[%clk 0:02:42]} 14. h4 {[%clk 0:02:54]}  Ba6 {[%clk 0:02:36]} 15. Bxa6 {[%clk 0:02:49]}  Rxa6 {[%clk 0:02:37]} 16. Qe2 {[%clk 0:02:43]}  Ra7 {[%clk 0:02:36]} 17. Nb5 {[%clk 0:02:33]}  Rd7 {[%clk 0:02:33]} 18. f3 {[%clk 0:02:27]}  Nc7 {[%clk 0:02:32]} 19. Nxc7 {[%clk 0:02:25]}  Rxc7 {[%clk 0:02:30]} 20. Rc1 {[%clk 0:01:28]}  Nd3+ {[%clk 0:02:29]} 0-1


[Site "https://www.chess.com"]

[Event "Titled Tuesday Blitz May 4 2021"]
[White "Arabidze, Meri"]
[Black "Jacobson, Brandon"]
[WhiteFideId "13604040"]
[BlackFideId "30901561"]
[WhiteElo "2432"]
[BlackElo "2362"]
[Result "0-1"]
[Round "03"]
[TimeControl "180+1"]
[Date "2021.05.04"]
[WhiteClock "0:00:07"]
[BlackClock "0:00:10"]

1. Nf3 {[%clk 0:03:00]}  d5 {[%clk 0:02:59]} 2. d4 {[%clk 0:03:00]}  Nf6 {[%clk 0:02:59]} 3. c4 {[%clk 0:03:01]}  e6 {[%clk 0:02:59]} 4. g3 {[%clk 0:03:01]}  h6 {[%clk 0:02:59]} 5. Bg2 {[%clk 0:03:01]}  Bd6 {[%clk 0:03:00]} 6. O-O {[%clk 0:03:01]}  O-O {[%clk 0:03:00]} 7. b3 {[%clk 0:03:01]}  b6 {[%clk 0:02:56]} 8. cxd5 {[%clk 0:02:58]}  exd5 {[%clk 0:02:57]} 9. Ba3 {[%clk 0:02:57]}  Bb7 {[%clk 0:02:42]} 10. Bxd6 {[%clk 0:02:56]}  Qxd6 {[%clk 0:02:43]} 11. Nc3 {[%clk 0:02:55]}  a6 {[%clk 0:02:32]} 12. Rc1 {[%clk 0:02:55]}  Re8 {[%clk 0:02:26]} 13. e3 {[%clk 0:02:54]}  Nbd7 {[%clk 0:02:17]} 14. Qc2 {[%clk 0:02:54]}  Rac8 {[%clk 0:02:16]} 15. Rfd1 {[%clk 0:02:53]}  Ne4 {[%clk 0:02:15]} 16. Nxe4 {[%clk 0:02:33]}  dxe4 {[%clk 0:02:16]} 17. Nd2 {[%clk 0:02:33]}  Nf6 {[%clk 0:02:10]} 18. Nc4 {[%clk 0:02:29]}  Qe6 {[%clk 0:02:03]} 19. b4 {[%clk 0:02:17]}  Bd5 {[%clk 0:02:01]} 20. Bf1 {[%clk 0:02:07]}  Qf5 {[%clk 0:01:53]} 21. a4 {[%clk 0:01:59]}  Re6 {[%clk 0:01:40]} 22. a5 {[%clk 0:01:58]}  b5 {[%clk 0:01:38]} 23. Ne5 {[%clk 0:01:58]}  c6 {[%clk 0:01:25]} 24. f4 {[%clk 0:01:56]}  Ne8 {[%clk 0:01:06]} 25. g4 {[%clk 0:01:52]}  Qh7 {[%clk 0:01:05]} 26. Qg2 {[%clk 0:01:42]}  Re7 {[%clk 0:00:59]} 27. f5 {[%clk 0:01:37]}  Nd6 {[%clk 0:00:59]} 28. h4 {[%clk 0:01:31]}  Rec7 {[%clk 0:00:50]} 29. Qg3 {[%clk 0:01:17]}  h5 {[%clk 0:00:43]} 30. Bh3 {[%clk 0:01:17]}  hxg4 {[%clk 0:00:39]} 31. Qxg4 {[%clk 0:01:17]}  f6 {[%clk 0:00:30]} 32. Ng6 {[%clk 0:01:16]}  Nc4 {[%clk 0:00:31]} 33. Rc3 {[%clk 0:00:56]}  Qh6 {[%clk 0:00:29]} 34. Kf2 {[%clk 0:00:54]}  Re8 {[%clk 0:00:25]} 35. Rg1 {[%clk 0:00:53]}  Bf7 {[%clk 0:00:23]} 36. Nf4 {[%clk 0:00:50]}  Nb2 {[%clk 0:00:17]} 37. d5 {[%clk 0:00:35]}  Nd3+ {[%clk 0:00:15]} 38. Nxd3 {[%clk 0:00:25]}  exd3 {[%clk 0:00:16]} 39. Qg3 {[%clk 0:00:17]}  Bxd5 {[%clk 0:00:14]} 40. Rxd3 {[%clk 0:00:17]}  Rce7 {[%clk 0:00:13]} 41. h5 {[%clk 0:00:07]}  Re4 {[%clk 0:00:11]} 42. Bg2 {[%clk 0:00:06]}  Rxb4 {[%clk 0:00:09]} 43. Bxd5+ {[%clk 0:00:06]}  cxd5 {[%clk 0:00:09]} 44. Rxd5 {[%clk 0:00:07]}  Rb2+ {[%clk 0:00:10]} 45. Kf3 {[%clk 0:00:07]}  Rxe3+ {[%clk 0:00:09]} 46. Kg4 {[%clk 0:00:07]}  Qg5+ {[%clk 0:00:09]} 47. Kh3 {[%clk 0:00:07]}  Qxh5# {[%clk 0:00:10]} 0-1


[Site "https://www.chess.com"]

[Event "Titled Tuesday Blitz May 4 2021"]
[White "Ashiev, Eduard"]
[Black "Myers, Dominique"]
[WhiteFideId "4130090"]
[BlackFideId "2041715"]
[WhiteElo "2106"]
[BlackElo "1986"]
[Result "1-0"]
[Round "03"]
[TimeControl "180+1"]
[Date "2021.05.04"]
[WhiteClock "0:00:08"]
[BlackClock "0:00:13"]

1. d4 {[%clk 0:02:56]}  Nf6 {[%clk 0:02:57]} 2. Nf3 {[%clk 0:02:55]}  g6 {[%clk 0:02:55]} 3. c4 {[%clk 0:02:56]}  Bg7 {[%clk 0:02:51]} 4. Nc3 {[%clk 0:02:56]}  d5 {[%clk 0:02:49]} 5. Bf4 {[%clk 0:02:55]}  O-O {[%clk 0:02:47]} 6. Rc1 {[%clk 0:02:55]}  Be6 {[%clk 0:02:47]} 7. cxd5 {[%clk 0:02:51]}  Nxd5 {[%clk 0:02:47]} 8. e3 {[%clk 0:02:46]}  Nxf4 {[%clk 0:02:47]} 9. exf4 {[%clk 0:02:46]}  c6 {[%clk 0:02:39]} 10. Be2 {[%clk 0:02:42]}  Qd6 {[%clk 0:02:38]} 11. g3 {[%clk 0:02:40]}  Bh3 {[%clk 0:02:30]} 12. Qb3 {[%clk 0:02:20]}  b5 {[%clk 0:02:22]} 13. Ne4 {[%clk 0:02:17]}  Qd8 {[%clk 0:02:14]} 14. a4 {[%clk 0:01:44]}  a6 {[%clk 0:02:07]} 15. Bf1 {[%clk 0:01:33]}  Be6 {[%clk 0:01:58]} 16. Qe3 {[%clk 0:01:29]}  Bd5 {[%clk 0:01:59]} 17. Bg2 {[%clk 0:01:25]}  Qa5+ {[%clk 0:01:57]} 18. Qc3 {[%clk 0:01:14]}  Qxa4 {[%clk 0:01:51]} 19. Nc5 {[%clk 0:01:08]}  Qc4 {[%clk 0:01:49]} 20. Qd2 {[%clk 0:01:00]}  Qa2 {[%clk 0:01:23]} 21. O-O {[%clk 0:00:58]}  Rd8 {[%clk 0:01:06]} 22. Ra1 {[%clk 0:00:53]}  Qc4 {[%clk 0:01:05]} 23. Rfc1 {[%clk 0:00:51]}  Bxf3 {[%clk 0:00:45]} 24. Rxc4 {[%clk 0:00:48]}  Bxg2 {[%clk 0:00:45]} 25. Rcc1 {[%clk 0:00:34]}  Bd5 {[%clk 0:00:44]} 26. f5 {[%clk 0:00:25]}  gxf5 {[%clk 0:00:42]} 27. Qf4 {[%clk 0:00:23]}  e6 {[%clk 0:00:41]} 28. Rd1 {[%clk 0:00:20]}  Ra7 {[%clk 0:00:39]} 29. b4 {[%clk 0:00:19]}  Nd7 {[%clk 0:00:30]} 30. Rxa6 {[%clk 0:00:17]}  Rxa6 {[%clk 0:00:27]} 31. Nxa6 {[%clk 0:00:16]}  Nf6 {[%clk 0:00:27]} 32. Nc5 {[%clk 0:00:16]}  Ne4 {[%clk 0:00:27]} 33. Qc7 {[%clk 0:00:14]}  Ra8 {[%clk 0:00:26]} 34. h4 {[%clk 0:00:14]}  Ra2 {[%clk 0:00:25]} 35. Nd7 {[%clk 0:00:13]}  h5 {[%clk 0:00:20]} 36. Ne5 {[%clk 0:00:13]}  Bxe5 {[%clk 0:00:17]} 37. Qxe5 {[%clk 0:00:12]}  Nxf2 {[%clk 0:00:18]} 38. Qb8+ {[%clk 0:00:11]}  Kh7 {[%clk 0:00:17]} 39. Qf8 {[%clk 0:00:10]}  Nh3+ {[%clk 0:00:18]} 40. Kf1 {[%clk 0:00:10]}  e5 {[%clk 0:00:14]} 41. Rc1 {[%clk 0:00:08]}  Bc4+ {[%clk 0:00:12]} 42. Rxc4 {[%clk 0:00:08]}  bxc4 {[%clk 0:00:13]} 43. Qxf7+ {[%clk 0:00:08]}  Kh6 {[%clk 0:00:13]} 44. Qf6+ {[%clk 0:00:08]}  Kh7 {[%clk 0:00:13]} 45. Qxf5+ {[%clk 0:00:08]}  Kg7 {[%clk 0:00:13]} 46. Qxh3 {[%clk 0:00:08]}  Ra1+ {[%clk 0:00:13]} 47. Ke2 {[%clk 0:00:08]}  exd4 {[%clk 0:00:14]} 48. Qd7+ {[%clk 0:00:08]}  Kg6 {[%clk 0:00:14]} 49. Qxd4 {[%clk 0:00:08]}  Ra2+ {[%clk 0:00:13]} 50. Ke3 {[%clk 0:00:08]}  Ra3+ {[%clk 0:00:13]} 51. Kf4 {[%clk 0:00:08]}  Rd3 {[%clk 0:00:14]} 52. Qxc4 {[%clk 0:00:08]}  Rd6 {[%clk 0:00:14]} 53. Qe4+ {[%clk 0:00:07]}  Kf6 {[%clk 0:00:13]} 54. Qe5+ {[%clk 0:00:07]}  Kf7 {[%clk 0:00:13]} 55. Qxd6 {[%clk 0:00:08]} 1-0


[Site "https://www.chess.com"]